fUST/lending_fUST_20240409
["ID","MTS","AMOUNT","RATE_DAILY","PERIOD"]
[321955155,1712650249867,-502.19453378,0.00036438,5]
[321955157,1712650249877,-1098.21,0.00036438,5]
[321955159,1712650249887,-510.87924336,0.00036438,5]
[321955161,1712650249897,-2620.16,0.00036438,5]
[321955163,1712650249906,-1761.1,0.00036438,5]
[321955165,1712650249916,-864.75,0.00036438,2]
[321955167,1712650249926,-852.56,0.00036438,5]
[321955169,1712650249935,-1581.83,0.00036438,5]
[321955171,1712650249945,-510.98,0.00036438,5]
[321955173,1712650249954,-1882.34,0.00036438,5]
[321955175,1712650249963,-500.0,0.00036438,5]
[321955177,1712650249973,-668.62,0.00036438,5]
[321955179,1712650249982,-500.0,0.00036438,5]
[321955181,1712650249991,-500.0,0.00036438,5]
[321955183,1712650250000,-500.0,0.00036438,5]
[321955185,1712650250010,-554.05,0.00036438,5]
[321955187,1712650250020,-19278.81,0.00036438,5]
[321955189,1712650250028,-1250.29,0.00036438,5]
[321955191,1712650250037,-500.0,0.00036438,5]
[321955193,1712650250047,-500.0,0.00036438,5]
[321955194,1712650250057,-500.0,0.00036438,5]
[321955196,1712650250066,-536.93162064,0.00036438,5]
[321955198,1712650250075,-510.692292,0.00036438,2]
[321955201,1712650250085,-510.692292,0.00036438,2]
[321955203,1712650250095,-666.02,0.00036438,5]
[321955205,1712650250104,-151.0,0.00036438,2]
[321955206,1712650250114,-500.0,0.00036438,5]
[321955208,1712650250124,-3614.53,0.00036438,5]
[321955211,1712650250134,-1278.73,0.00036438,5]
[321955213,1712650250144,-151.0,0.00036438,2]
[321955214,1712650250154,-252.5154,0.00036438,2]
[321955216,1712650250164,-151.0,0.00036438,2]
[321955218,1712650250173,-500.0,0.00036438,5]
[321955221,1712650250183,-15414.83,0.00036438,5]
[321955223,1712650250192,-500.0,0.00036438,5]
[321955225,1712650250203,-151.223614,0.00036438,2]
[321955227,1712650250213,-500.0,0.00036438,5]
[321955229,1712650250222,-5645.05,0.00036438,5]
[321955231,1712650250231,-540.32,0.00036438,5]
[321955233,1712650250240,-500.0,0.00036438,5]
[321955235,1712650250249,-500.0,0.00036438,5]
[321955237,1712650250258,-2549.2,0.00036438,5]
[321955238,1712650250268,-151.0,0.00036438,2]
[321955241,1712650250278,-151.0,0.00036438,2]
[321955243,1712650250287,-151.0,0.00036438,2]
[321955245,1712650250297,-500.0,0.00036438,5]
[321955247,1712650250307,-2248.33,0.00036438,5]
[321955249,1712650250316,-3238.25,0.00036438,5]
[321955251,1712650250326,-1617.23,0.00036438,5]
[321955252,1712650250336,-500.0,0.00036438,5]
[321955254,1712650250345,-1245.97,0.00036438,5]
[321955256,1712650250355,-580.47,0.00036438,5]
[321955259,1712650250364,-500.0,0.00036438,5]
[321955261,1712650250374,-151.0,0.00036438,2]
[321955263,1712650250384,-6800.71,0.00036438,5]
[321955265,1712650250393,-1417.26,0.00036438,5]
[321955266,1712650250402,-170.07449,0.00036438,2]
[321955269,1712650250412,-170.07449,0.00036438,2]
[321955270,1712650250422,-867.26,0.00036438,5]
[321955273,1712650250432,-500.0,0.00036438,5]
[321955275,1712650250442,-271.681711,0.00036545,2]
[321955276,1712650250452,-271.681711,0.00036545,2]
[321955278,1712650250461,-682.53135684,0.00036545,2]
[321955280,1712650250471,-44111.96778598,0.0003671,4]
[321955283,1712650250487,-363.0,0.0003671,4]
[321955286,1712650250501,-3111.59440341,0.0003671,4]
[321955288,1712650250513,-283.35107247,0.0003671,4]
[321955290,1712650250522,-202.77027478,0.0003671,4]
[321955292,1712650250532,-193.18347694,0.0003671,4]
[321955294,1712650250542,-11088.15695859,0.0003671,4]
[321955296,1712650250551,-151.0,0.0003671,2]
[321955298,1712650250560,-151.0,0.0003671,2]
[321955300,1712650250570,-151.0,0.0003671,2]
[321955302,1712650250579,-209.782836,0.0003671,2]
[321955304,1712650250589,-209.782836,0.0003671,2]
[321955306,1712650250598,-151.0,0.0003671,2]
[321955308,1712650250611,-151.0,0.0003671,2]
[321955310,1712650250621,-2053.88660041,0.00036711,4]
[321955321,1712650250729,-185.57928704,0.00035615,4]
[321955322,1712650250738,-29.40850887,0.00036711,4]
[321955323,1712650250748,-91.01220409,0.00036711,2]
[321955324,1712650250760,-59.98779591,0.00036711,2]
[321955325,1712650250769,-151.0,0.00036711,2]
[321955326,1712650250779,-500.0,0.00036712,5]
[321955327,1712650250788,-903.55,0.00036712,5]
[321955328,1712650250799,-500.0,0.00036712,5]
[321955329,1712650250808,-170.81,0.00036712,5]
[321955330,1712650250817,-114.53340065,0.00036712,5]
[321955331,1712650250852,-385.46659935,0.00036712,5]
[321955333,1712650250862,-500.0,0.00036712,5]
[321955335,1712650250877,-500.0,0.00036712,5]
[321955337,1712650250888,-500.0,0.00036712,5]
[321955339,1712650250898,-500.0,0.00036712,5]
[321955341,1712650250907,-530.7,0.00036712,5]
[321955343,1712650250917,-500.0,0.00036712,5]
[321955345,1712650250927,-500.0,0.00036712,5]
[321955355,1712650251026,-500.0,0.00036712,5]
[321955357,1712650251038,-500.0,0.00036712,5]
[321955360,1712650251048,-432.14165613,0.00036712,5]
[321955361,1712650251059,-500.0,0.00036712,5]
[321955363,1712650251070,-2053.32,0.00036712,5]
[321955365,1712650251090,-500.0,0.00036712,5]
[321955367,1712650251101,-552.43,0.00036712,5]
[321955369,1712650251111,-391.422698,0.00036712,2]
[321955371,1712650251121,-391.422698,0.00036712,2]
[321955373,1712650251130,-1547.9,0.00036712,5]
[321955375,1712650251141,-500.0,0.00036712,5]
[321955377,1712650251151,-500.0,0.00036712,5]
[321955379,1712650251161,-606.79,0.00036712,5]
[321955381,1712650251170,-500.0,0.00036712,5]
[321955383,1712650251179,-500.0,0.00036712,5]
[321955385,1712650251189,-617.21,0.00036712,5]
[321955387,1712650251198,-500.0,0.00036712,5]
[321955389,1712650251208,-510.99,0.00036712,5]
[321955391,1712650251218,-500.0,0.00036712,5]
[321955393,1712650251228,-500.0,0.00036712,5]
[321955395,1712650251238,-808.27,0.00036712,5]
[321955397,1712650251247,-500.0,0.00036712,5]
[321955399,1712650251256,-500.0,0.00036712,5]
[321955401,1712650251266,-1927.72,0.00036712,5]
[321955403,1712650251275,-500.0,0.00036712,5]
[321955405,1712650251286,-500.0,0.00036712,5]
[321955407,1712650251295,-549.88,0.00036712,5]
[321955409,1712650251305,-500.0,0.00036712,5]
[321955411,1712650251314,-605.07,0.00036712,5]
[321955413,1712650251323,-500.0,0.00036712,5]
[321955415,1712650251333,-500.0,0.00036712,5]
[321955417,1712650251343,-500.0,0.00036712,5]
[321955419,1712650251354,-500.0,0.00036712,5]
[321955421,1712650251363,-508.08720884,0.00036712,5]
[321955423,1712650251372,-500.0,0.00036712,5]
[321955425,1712650251381,-500.0,0.00036712,5]
[321955427,1712650251391,-1523.53,0.00036712,5]
[321955429,1712650251401,-500.0,0.00036712,5]
[321955431,1712650251410,-500.0,0.00036712,5]
[321955433,1712650251421,-166.81967835,0.00036712,5]
[321955435,1712650251432,-500.0,0.00036712,5]
[321955437,1712650251442,-500.0,0.00036712,5]
[321955439,1712650251451,-500.0,0.00036712,5]
[321955441,1712650251461,-500.0,0.00036712,5]
[321955443,1712650251470,-875.22,0.00036712,5]
[321955445,1712650251480,-592.87,0.00036712,5]
[321955447,1712650251489,-784.47,0.00036712,5]
[321955449,1712650251499,-680.65,0.00036712,5]
[321955451,1712650251508,-500.0,0.00036712,5]
[321955452,1712650251517,-500.0,0.00036712,5]
[321955455,1712650251527,-1159.04,0.00036712,5]
[321955456,1712650251537,-1032.81,0.00036712,5]
[321955459,1712650251547,-5624.53,0.00036712,5]
[321955461,1712650251556,-726.27,0.00036712,5]
[321955462,1712650251566,-500.0,0.00036712,5]
[321955465,1712650251575,-2512.5,0.00036712,5]
[321955467,1712650251585,-500.0,0.00036712,5]
[321955469,1712650251594,-500.0,0.00036712,5]
[321955471,1712650251603,-886.05,0.00036712,5]
[321955472,1712650251612,-1419.14,0.00036712,5]
[321955474,1712650251623,-500.0,0.00036712,5]
[321955476,1712650251633,-736.21,0.00036712,5]
[321955478,1712650251642,-1345.85,0.00036712,5]
[321955480,1712650251651,-500.0,0.00036712,5]
[321955482,1712650251661,-500.0,0.00036712,5]
[321955484,1712650251670,-500.0,0.00036712,5]
[321955486,1712650251679,-1672.86,0.00036712,5]
[321955488,1712650251689,-500.0,0.00036712,5]
[321955491,1712650251699,-1763.57,0.00036712,5]
[321955492,1712650251708,-3435.69,0.00036712,5]
[321955494,1712650251717,-500.0,0.00036712,5]
[321955497,1712650251727,-500.0,0.00036712,5]
[321955498,1712650251736,-500.0,0.00036712,5]
[321955500,1712650251746,-589.14,0.00036712,5]
[321955502,1712650251755,-2735.37,0.00036712,5]
[321955504,1712650251764,-500.0,0.00036712,5]
[321955506,1712650251773,-552.04,0.00036712,5]
[321955508,1712650251782,-1098.21,0.00036712,5]
[321955510,1712650251792,-2620.16,0.00036712,5]
[321955512,1712650251801,-1761.1,0.00036712,5]
[321955515,1712650251810,-864.75,0.00036712,2]
[321955517,1712650251823,-852.56,0.00036712,5]
[321955519,1712650251834,-1581.83,0.00036712,5]
[321955520,1712650251844,-510.98,0.00036712,5]
[321955522,1712650251853,-1882.34,0.00036712,5]
[321955525,1712650251864,-500.0,0.00036712,5]
[321955526,1712650251873,-668.62,0.00036712,5]
[321955528,1712650251883,-500.0,0.00036712,5]
[321955531,1712650251894,-500.0,0.00036712,5]
[321955532,1712650251904,-554.05,0.00036712,5]
[321955534,1712650251915,-19278.81,0.00036712,5]
[321955536,1712650251924,-1250.29,0.00036712,5]
[321955538,1712650251933,-500.0,0.00036712,5]
[321955541,1712650251942,-500.0,0.00036712,5]
[321955543,1712650251951,-500.0,0.00036712,5]
[321955544,1712650251960,-271.681711,0.00036712,2]
[321955546,1712650251969,-271.681711,0.00036712,2]
[321955548,1712650251978,-510.692292,0.00036712,2]
[321955550,1712650251988,-510.692292,0.00036712,2]
[321955552,1712650251996,-666.02,0.00036712,5]
[321955554,1712650252006,-151.0,0.00036712,2]
[321955556,1712650252016,-500.0,0.00036712,5]
[321955558,1712650252025,-3614.53,0.00036712,5]
[321955561,1712650252034,-1278.73,0.00036712,5]
[321955562,1712650252043,-151.0,0.00036712,2]
[321955564,1712650252053,-151.0,0.00036712,2]
[321955566,1712650252062,-500.0,0.00036712,5]
[321955568,1712650252072,-15414.83,0.00036712,5]
[321955570,1712650252096,-500.0,0.00036712,5]
[321955573,1712650252106,-500.0,0.00036712,5]
[321955574,1712650252115,-5645.05,0.00036712,5]
[321955577,1712650252125,-540.32,0.00036712,5]
[321955578,1712650252135,-500.0,0.00036712,5]
[321955580,1712650252144,-2549.2,0.00036712,5]
[321955582,1712650252155,-151.0,0.00036712,2]
[321955584,1712650252167,-151.0,0.00036712,2]
[321955586,1712650252177,-151.0,0.00036712,2]
[321955588,1712650252186,-500.0,0.00036712,5]
[321955590,1712650252196,-2248.33,0.00036712,5]
[321955593,1712650252206,-3238.25,0.00036712,5]
[321955594,1712650252216,-1617.23,0.00036712,5]
[321955597,1712650252225,-500.0,0.00036712,5]
[321955598,1712650252235,-1245.97,0.00036712,5]
[321955600,1712650252244,-580.47,0.00036712,5]
[321955602,1712650252254,-500.0,0.00036712,5]
[321955604,1712650252264,-6800.71,0.00036712,5]
[321955606,1712650252274,-1417.26,0.00036712,5]
[321955608,1712650252284,-170.07449,0.00036712,2]
[321955610,1712650252293,-170.07449,0.00036712,2]
[321955612,1712650252304,-867.26,0.00036712,5]
[321955614,1712650252313,-500.0,0.00036712,5]
[321955616,1712650252323,-166.666666,0.00036723,2]
[321955618,1712650252332,-682.53135684,0.00036797,2]
[321955620,1712650252341,-823.0,0.00036908,2]
[321955622,1712650252351,-500.0,0.00036986,5]
[321955624,1712650252360,-903.55,0.00036986,5]
[321955626,1712650252369,-500.0,0.00036986,5]
[321955628,1712650252378,-500.0,0.00036986,5]
[321955630,1712650252388,-505.1728789,0.00036986,5]
[321955632,1712650252397,-500.0,0.00036986,5]
[321955634,1712650252406,-500.0,0.00036986,5]
[321955636,1712650252415,-530.7,0.00036986,5]
[321955638,1712650252424,-350.73865125,0.00036986,5]
[321955640,1712650252435,-504.67387645,0.00036986,5]
[321955642,1712650252456,-502.49362392,0.00036986,5]
[321955644,1712650252466,-500.0,0.00036986,5]
[321955646,1712650252475,-500.0,0.00036986,5]
[321955648,1712650252483,-2053.32,0.00036986,5]
[321955649,1712650252493,-500.0,0.00036986,5]
[321955651,1712650252502,-552.43,0.00036986,5]
[321955653,1712650252511,-391.422698,0.00036986,2]
[321955655,1712650252520,-391.422698,0.00036986,2]
[321955657,1712650252529,-1547.9,0.00036986,5]
[321955659,1712650252538,-500.0,0.00036986,5]
[321955661,1712650252547,-500.0,0.00036986,5]
[321955663,1712650252556,-606.79,0.00036986,5]
[321955665,1712650252566,-500.0,0.00036986,5]
[321955667,1712650252575,-500.0,0.00036986,5]
[321955669,1712650252603,-617.21,0.00036986,5]
[321955671,1712650252612,-500.0,0.00036986,5]
[321955673,1712650252621,-510.99,0.00036986,5]
[321955675,1712650252630,-151.0,0.00036986,2]
[321955677,1712650252639,-500.0,0.00036986,5]
[321955679,1712650252647,-500.0,0.00036986,5]
[321955681,1712650252656,-808.27,0.00036986,5]
[321955683,1712650252665,-500.0,0.00036986,5]
[321955685,1712650252673,-500.0,0.00036986,5]
[321955687,1712650252682,-1927.72,0.00036986,5]
[321955689,1712650252692,-500.0,0.00036986,5]
[321955691,1712650252701,-375.6480792,0.00036986,5]
[321955693,1712650252711,-549.88,0.00036986,5]
[321955695,1712650252720,-500.0,0.00036986,5]
[321955697,1712650252729,-605.07,0.00036986,5]
[321955699,1712650252739,-500.0,0.00036986,5]
[321955701,1712650252749,-500.0,0.00036986,5]
[321955703,1712650252758,-500.0,0.00036986,5]
[321955705,1712650252767,-626.29858566,0.00036986,5]
[321955707,1712650252776,-500.0,0.00036986,5]
[321955709,1712650252785,-500.0,0.00036986,5]
[321955711,1712650252795,-1523.53,0.00036986,5]
[321955713,1712650252804,-500.0,0.00036986,5]
[321955715,1712650252813,-500.0,0.00036986,5]
[321955717,1712650252826,-151.0,0.00036986,2]
[321955719,1712650252836,-500.0,0.00036986,5]
[321955721,1712650252845,-500.0,0.00036986,5]
[321955723,1712650252854,-500.0,0.00036986,5]
[321955725,1712650252864,-500.0,0.00036986,5]
[321955727,1712650252874,-875.22,0.00036986,5]
[321955729,1712650252883,-592.87,0.00036986,5]
[321955731,1712650252892,-784.47,0.00036986,5]
[321955732,1712650252901,-680.65,0.00036986,5]
[321955734,1712650252910,-500.0,0.00036986,5]
[321955736,1712650252919,-207.24501136,0.00036986,5]
[321955738,1712650252928,-1159.04,0.00036986,5]
[321955740,1712650252936,-1032.81,0.00036986,5]
[321955742,1712650252945,-209.782836,0.00036986,2]
[321955744,1712650252954,-5624.53,0.00036986,5]
[321955746,1712650252964,-726.27,0.00036986,5]
[321955748,1712650252973,-209.782836,0.00036986,2]
[321955750,1712650252982,-500.0,0.00036986,5]
[321955752,1712650252991,-2512.5,0.00036986,5]
[321955754,1712650253000,-500.0,0.00036986,5]
[321955756,1712650253009,-500.0,0.00036986,5]
[321955763,1712650253092,-151.0,0.00036986,2]
[321955764,1712650253110,-886.05,0.00036986,5]
[321955765,1712650253121,-151.0,0.00036986,2]
[321955766,1712650253130,-1419.14,0.00036986,5]
[321955767,1712650253140,-736.21,0.00036986,5]
[321955768,1712650253150,-1345.85,0.00036986,5]
[321955769,1712650253160,-500.0,0.00036986,5]
[321955770,1712650253169,-500.0,0.00036986,5]
[321955771,1712650253178,-500.0,0.00036986,5]
[321955772,1712650253188,-1672.86,0.00036986,5]
[321955773,1712650253197,-500.0,0.00036986,5]
[321955774,1712650253206,-1763.57,0.00036986,5]
[321955775,1712650253215,-3435.69,0.00036986,5]
[321955777,1712650253224,-500.0,0.00036986,5]
[321955778,1712650253234,-500.0,0.00036986,5]
[321955780,1712650253244,-500.0,0.00036986,5]
[321955781,1712650253253,-589.14,0.00036986,5]
[321955782,1712650253262,-2735.37,0.00036986,5]
[321955783,1712650253271,-500.0,0.00036986,5]
[321955785,1712650253280,-552.04,0.00036986,5]
[321955786,1712650253289,-1098.21,0.00036986,5]
[321955787,1712650253299,-2620.16,0.00036986,5]
[321955789,1712650253308,-1761.1,0.00036986,5]
[321955791,1712650253318,-864.75,0.00036986,2]
[321955793,1712650253327,-852.56,0.00036986,5]
[321955795,1712650253336,-1581.83,0.00036986,5]
[321955797,1712650253347,-510.98,0.00036986,5]
[321955798,1712650253357,-1882.34,0.00036986,5]
[321955800,1712650253367,-500.0,0.00036986,5]
[321955801,1712650253377,-668.62,0.00036986,5]
[321955803,1712650253386,-500.0,0.00036986,5]
[321955805,1712650253395,-500.0,0.00036986,5]
[321955806,1712650253404,-554.05,0.00036986,5]
[321955808,1712650253414,-19278.81,0.00036986,5]
[321955809,1712650253428,-1250.29,0.00036986,5]
[321955810,1712650253437,-500.0,0.00036986,5]
[321955812,1712650253446,-500.0,0.00036986,5]
[321955814,1712650253455,-500.0,0.00036986,5]
[321955816,1712650253464,-510.692292,0.00036986,2]
[321955818,1712650253473,-510.692292,0.00036986,2]
[321955820,1712650253482,-666.02,0.00036986,5]
[321955822,1712650253491,-500.0,0.00036986,5]
[321955823,1712650253499,-3614.53,0.00036986,5]
[321955824,1712650253508,-1278.73,0.00036986,5]
[321955825,1712650253517,-151.0,0.00036986,2]
[321955826,1712650253528,-237.624723,0.00036986,2]
[321955827,1712650253538,-500.0,0.00036986,5]
[321955828,1712650253547,-500.0,0.00036986,5]
[321955829,1712650253557,-15414.83,0.00036986,5]
[321955830,1712650253566,-500.0,0.00036986,5]
[321955831,1712650253575,-540.32,0.00036986,5]
[321955832,1712650253584,-5645.05,0.00036986,5]
[321955833,1712650253610,-500.0,0.00036986,5]
[321955834,1712650253619,-2549.2,0.00036986,5]
[321955835,1712650253628,-151.0,0.00036986,2]
[321955836,1712650253638,-151.0,0.00036986,2]
[321955837,1712650253648,-253.453032,0.00036986,2]
[321955838,1712650253657,-500.0,0.00036986,5]
[321955839,1712650253667,-2248.33,0.00036986,5]
[321955840,1712650253678,-3238.25,0.00036986,5]
[321955841,1712650253688,-1617.23,0.00036986,5]
[321955842,1712650253697,-500.0,0.00036986,5]
[321955843,1712650253707,-1245.97,0.00036986,5]
[321955844,1712650253716,-415.7393388,0.00036986,5]
[321955845,1712650253727,-580.47,0.00036986,5]
[321955846,1712650253736,-6800.71,0.00036986,5]
[321955847,1712650253747,-1417.26,0.00036986,5]
[321955848,1712650253756,-170.07449,0.00036986,2]
[321955849,1712650253766,-170.07449,0.00036986,2]
[321955850,1712650253776,-867.26,0.00036986,5]
[321955851,1712650253786,-500.0,0.00036986,5]
[321955852,1712650253796,-1337.011015,0.00036986,120]
[321955853,1712650253806,-160.0,0.00037033,3]
[321955854,1712650253815,-682.53135684,0.00037048,2]
[321955855,1712650253831,-500.0,0.0003726,5]
[321955856,1712650253841,-903.55,0.0003726,5]
[321955857,1712650253851,-500.0,0.0003726,5]
[321955858,1712650253860,-500.0,0.0003726,5]
[321955860,1712650253871,-500.0,0.0003726,5]
[321955862,1712650253880,-500.0,0.0003726,5]
[321955864,1712650253889,-530.7,0.0003726,5]
[321955866,1712650253898,-500.0,0.0003726,5]
[321955868,1712650253908,-500.0,0.0003726,5]
[321955870,1712650253917,-2053.32,0.0003726,5]
[321955872,1712650253926,-500.0,0.0003726,5]
[321955874,1712650253936,-552.43,0.0003726,5]
[321955876,1712650253946,-391.422698,0.0003726,2]
[321955878,1712650253956,-391.422698,0.0003726,2]
[321955880,1712650253965,-1547.9,0.0003726,5]
[321955882,1712650253974,-620.33550114,0.0003726,5]
[321955884,1712650253983,-500.0,0.0003726,5]
[321955886,1712650253993,-606.79,0.0003726,5]
[321955888,1712650254001,-500.0,0.0003726,5]
[321955889,1712650254010,-500.0,0.0003726,5]
[321955892,1712650254019,-617.21,0.0003726,5]
[321955893,1712650254029,-500.0,0.0003726,5]
[321955895,1712650254039,-510.99,0.0003726,5]
[321955897,1712650254049,-151.0,0.0003726,2]
[321955899,1712650254059,-500.0,0.0003726,5]
[321955901,1712650254070,-500.0,0.0003726,5]
[321955903,1712650254080,-808.27,0.0003726,5]
[321955905,1712650254104,-500.0,0.0003726,5]
[321955907,1712650254115,-500.0,0.0003726,5]
[321955910,1712650254126,-1927.72,0.0003726,5]
[321955912,1712650254136,-500.0,0.0003726,5]
[321955914,1712650254146,-549.88,0.0003726,5]
[321955916,1712650254158,-500.0,0.0003726,5]
[321955918,1712650254167,-605.07,0.0003726,5]
[321955919,1712650254177,-500.0,0.0003726,5]
[321955921,1712650254187,-500.0,0.0003726,5]
[321955924,1712650254197,-500.0,0.0003726,5]
[321955926,1712650254206,-500.0,0.0003726,5]
[321955927,1712650254215,-500.0,0.0003726,5]
[321955929,1712650254225,-1523.53,0.0003726,5]
[321955931,1712650254234,-500.0,0.0003726,5]
[321955933,1712650254243,-311.98738144,0.0003726,5]
[321955935,1712650254253,-500.0,0.0003726,5]
[321955937,1712650254262,-500.0,0.0003726,5]
[321955939,1712650254272,-500.0,0.0003726,5]
[321955941,1712650254282,-500.0,0.0003726,5]
[321955943,1712650254292,-875.22,0.0003726,5]
[321955945,1712650254301,-592.87,0.0003726,5]
[321955947,1712650254311,-784.47,0.0003726,5]
[321955949,1712650254320,-680.65,0.0003726,5]
[321955951,1712650254329,-500.0,0.0003726,5]
[321955953,1712650254339,-1159.04,0.0003726,5]
[321955955,1712650254348,-1032.81,0.0003726,5]
[321955957,1712650254357,-209.782836,0.0003726,2]
[321955959,1712650254367,-5624.53,0.0003726,5]
[321955961,1712650254376,-726.27,0.0003726,5]
[321955963,1712650254386,-209.782836,0.0003726,2]
[321955965,1712650254395,-444.98895609,0.0003726,5]
[321955967,1712650254404,-2512.5,0.0003726,5]
[321955969,1712650254414,-500.0,0.0003726,5]
[321955971,1712650254423,-500.0,0.0003726,5]
[321955973,1712650254432,-886.05,0.0003726,5]
[321955975,1712650254442,-151.0,0.0003726,2]
[321955977,1712650254452,-151.0,0.0003726,2]
[321955979,1712650254463,-1419.14,0.0003726,5]
[321955981,1712650254473,-736.21,0.0003726,5]
[321955983,1712650254482,-1345.85,0.0003726,5]
[321955985,1712650254492,-500.0,0.0003726,5]
[321955987,1712650254501,-500.0,0.0003726,5]
[321955989,1712650254510,-500.0,0.0003726,5]
[321955991,1712650254519,-1672.86,0.0003726,5]
[321955993,1712650254529,-500.0,0.0003726,5]
[321955995,1712650254539,-1763.57,0.0003726,5]
[321955997,1712650254548,-3435.69,0.0003726,5]
[321955999,1712650254557,-500.0,0.0003726,5]
[321956001,1712650254567,-500.0,0.0003726,5]
[321956003,1712650254575,-507.09992428,0.0003726,5]
[321956005,1712650254584,-589.14,0.0003726,5]
[321956007,1712650254593,-2735.37,0.0003726,5]
[321956009,1712650254608,-500.0,0.0003726,5]
[321956010,1712650254628,-552.04,0.0003726,5]
[321956012,1712650254638,-1098.21,0.0003726,5]
[321956014,1712650254648,-2620.16,0.0003726,5]
[321956016,1712650254658,-1761.1,0.0003726,5]
[321956018,1712650254668,-864.75,0.0003726,2]
[321956020,1712650254678,-852.56,0.0003726,5]
[321956022,1712650254687,-1581.83,0.0003726,5]
[321956024,1712650254697,-510.98,0.0003726,5]
[321956026,1712650254707,-1882.34,0.0003726,5]
[321956028,1712650254717,-500.0,0.0003726,5]
[321956030,1712650254727,-668.62,0.0003726,5]
[321956032,1712650254736,-500.0,0.0003726,5]
[321956034,1712650254745,-500.0,0.0003726,5]
[321956036,1712650254755,-554.05,0.0003726,5]
[321956038,1712650254765,-19278.81,0.0003726,5]
[321956040,1712650254775,-1250.29,0.0003726,5]
[321956042,1712650254785,-500.0,0.0003726,5]
[321956044,1712650254794,-500.0,0.0003726,5]
[321956046,1712650254804,-500.0,0.0003726,5]
[321956048,1712650254814,-271.681711,0.0003726,2]
[321956050,1712650254828,-271.681711,0.0003726,2]
[321956052,1712650254838,-666.02,0.0003726,5]
[321956054,1712650254847,-500.0,0.0003726,5]
[321956056,1712650254857,-3614.53,0.0003726,5]
[321956058,1712650254873,-1278.73,0.0003726,5]
[321956060,1712650254883,-500.0,0.0003726,5]
[321956062,1712650254892,-500.0,0.0003726,5]
[321956064,1712650254902,-15414.83,0.0003726,5]
[321956066,1712650254912,-500.0,0.0003726,5]
[321956068,1712650254922,-540.32,0.0003726,5]
[321956070,1712650254932,-5645.05,0.0003726,5]
[321956072,1712650254941,-500.0,0.0003726,5]
[321956074,1712650254950,-2549.2,0.0003726,5]
[321956076,1712650254961,-500.0,0.0003726,5]
[321956087,1712650255052,-2248.33,0.0003726,5]
[321956089,1712650255062,-3238.25,0.0003726,5]
[321956091,1712650255073,-1617.23,0.0003726,5]
[321956093,1712650255083,-500.0,0.0003726,5]
[321956095,1712650255092,-1245.97,0.0003726,5]
[321956097,1712650255101,-580.47,0.0003726,5]
[321956099,1712650255128,-1417.26,0.0003726,5]
[321956101,1712650255136,-867.26,0.0003726,5]
[321956103,1712650255146,-500.0,0.0003726,5]
[321956105,1712650255156,-682.53135684,0.000373,2]
[321956107,1712650255165,-306.0,0.00037315,2]
[321956109,1712650255175,-153.0,0.00037315,2]
[321956111,1712650255185,-160.0,0.00037461,4]